Workbook

Sheet Title
A8: US 27 PALMETTO Economic Impact Calculations
A9: US 27 Palmetto - US 27/SR 25 - SR 826 Improvements
A14: This Excel spreadsheet provides the backup calculations for the construction economic impact analysis of the US Palmetto Project. It contains 8 sheets or tabs as described below.
A16: Sheet # | B16: Name | C16: Link to Sheet | D16: Contents
A17: 1 | B17: =INDEX(SheetNames,A17) -> Title | C17: =HYPERLINK("#'"&B17&"'!A1","Go To Sheet") -> Go To Sheet | D17: Table of Contents
A18: =A17+1 -> 2 | B18: =INDEX(SheetNames,A18) -> Sheet1 | C18: =HYPERLINK("#'"&B18&"'!A1","Go To Sheet") -> Go To Sheet | D18: Calculation of construction period economic output, earnings, and jobs for study area
A19: =A18+1 -> 3 | B19: Construction Impact Model | C19: =HYPERLINK("#'"&B19&"'!A1","Go To Sheet") -> Go To Sheet | D19: Project capital cost summary for construction
A20: 4 | B20: Capital Costs | C20: Go To Sheet | D20: Project description
A21: 5 | B21: Project Element Description | C21: Go To Sheet | D21: RIMS II Table 2.5 Total Multipliers - industry aggregations for Miami-Dade & Broward counties
A22: 6 | B22: RIMS II Table 2.5 | C22: Go To Sheet | D22: BEA Table 6.4D. Full-Time and Part-Time Employees by Industry
A23: 7 | B23: Full & Part-Time | C23: Go To Sheet | D23: BEA Table 6.5D. Full-Time Equivalent Employees by Industry
A24: 8 | B24: FTE | C24: Go To Sheet | D24: Implicit price deflators for GDP
A25: 9 | B25: Deflator | C25: Go To Sheet | D25: Summary of economic impacts
A26: 10 | D26: Summary of long-term economic output, earnings, and jobs from project
A27: 11 | D27: Calculation of long-term economic output, earnings, and jobs from project
A28: 12 | D28: Project description
A29: 13 | D29: Project capital cost summary for construction
A30: 14 | D30: Estimated build and no-build O&M cost in 2018 dollars
A31: 15 | D31: RIMS II Table 1.5 Total Multipliers - detailed industries for Miami-Dade & Broward counties
A32: 16 | D32: Implicit price deflators for GDP
A33: 17
A34: 18
A35: 19
A36: 20
A37: =A36+1 -> 21 | B37: =INDEX(SheetNames,A37) -> 
A38: 22
A39: 23 | B39: =INDEX(SheetNames,A39) -> 
A40: 24
A41: 25
A42: 26
A43: 27
A44: 28
A45: 29
A46: 30
A47: 31
A48: 32
A49: 33 | B49: =INDEX(SheetNames,A49) -> 
A50: 34
A51: 35
A52: 36
A53: 37
A54: 38

Sheet Narrative Summary
A1: US 27 PALMETTO Interchange Project
A2: Job Creation and Economic Stimulus
A3: Overview
A4: The economic impact analysis focused on the job creation and economic stimulus that would be created by the US 27 Palmetto Project. It addresses the effect of the expenditure of construction funds. and the resulting, ongoing commercial benefits for the project. These benefits are in addition to the user and public benefits estimated for the BCA. The economic analysis estimates the economic output, earnings, and jobs from design and construction spending in Miami-Dade and Broward counties, which would occur primarily during the assumed design and construction period of 2025 through 2028.
A5: This study uses RIMS II multipliers produced by the Bureau of Economic Analysis (BEA) Regional Input‐Output Modeling System (RIMS II). This analysis applies the multipliers to project costs and/or jobs to estimate the economic impacts. The BEA has provided regional input‐output multipliers since the early 1970s as a tool to help economists analyze the potential impacts of economic activities like the GGTTC on regional economies. Given spending such as capital costs or O&M costs as an input, the input-output multiplier estimates economic in terms of total economic output, earnings, and jobs for Miami-Dade and Broward counties. In this analysis, the multipliers for Miami-Dade and Broward counties were applied to the estimated final design and construction costs for the construction-related spending effects. The methodology and detailed assumptions are described in the economic analysis spreadsheet that applies the RIMS II multipliers to costs. Summary of Results Table 1 summarizes the construction spending impacts which would occur roughly over the construction period of 2025 through 2028, although minor effects of planning and preliminary design costs occur earlier. Costs of $196.1 million (excluding right-of-way and preliminary costs) are estimated to give rise to economic output of about $394 million in Miami-Dade and Broward counties. Earnings would total about $136 million, corresponding to about 2,800 full-time equivalent (FTE) job years. Each million dollars of construction expenditure would generate about $2 million in additional economic output and around 14 jobs in the local economy. The jobs include direct jobs, indirect jobs from suppliers, and induced jobs from increased household spending. Overview
A6: The methodology and detailed assumptions are described in the economic analysis spreadsheet that applies the RIMS II multipliers to costs.[1]
A8: Table 1 summarizes the construction spending impacts which would occur roughly over the construction period of 2025 through 2028, although minor effects of planning and preliminary design costs occur earlier.[2] Costs of $196.1 million (excluding right-of-way and preliminary costs) are estimated to give rise to economic output of about $394 million in Miami-Dade and Broward counties. Earnings would total about $136 million, corresponding to about 2,800 full-time equivalent (FTE) job years. Each million dollars of construction expenditure would generate about $2 million in additional economic output and around 14 jobs in the local economy. The jobs include direct jobs, indirect jobs from suppliers, and induced jobs from increased household spending.
A10: Table 1 - Construction Economic Impact in Miami-Dade and Broward Counties
A11: (Millions 2020 Dollars, FTE Job Years)
A12: Cost Category | B12: Cost | C12: Output | D12: Earnings | E12: Jobs
A13: Construction | B13: 196.1 | C13: 393.92 | D13: 135.52 | E13: 2800
A14: ROW | B14: 0 | C14: - | D14: - | E14: -
A15: Total | B15: 196.1 | C15: 393.9 | D15: 135.5 | E15: 2800
A16: Source: Atkins 2022
A19: [1] US 27 Construction Economic Impact.xlsm, Atkins, 2022.
A20: [2] An earlier $1.4 million in preliminary project costs would have already had their impact, and the construction-period spending impacts would take several quarters after the end of construction to complete their ripple through the local economy.

Sheet Construction Impact Model
A1: Construction Economic Impact Model - Miami-Dade and Broward Counties
A2: 2022-04-20
A3: =HYPERLINK("#'"&Title!$B$17&"'!A27","Go To Title Page") -> Go To Title Page
A4: The job multipliers are inflated to 2020 $ and adjusted to give full-time equivalent (FTE) employment.
A7: RIMS II Multipliers
B8: Construction
A9: Year | B9: Output | C9: Earnings | D9: Jobs
A10: 2017 | B10: ='RIMS II Table 2.5'!C12 -> 2.0092 | C10: ='RIMS II Table 2.5'!D12 -> 0.6912 | D10: ='RIMS II Table 2.5'!E12 -> 15.5386
A11: 2020* | B11: =B10 -> 2.0092 | C11: =C10 -> 0.6912 | D11: =D10/Deflator!B21 -> 14.73178177
A12: Correction to FTE | B12: =B10 -> 2.0092 | C12: =C10 -> 0.6912 | D12: =D11*'Full & Part-Time'!M19 -> 14.23415368
A13: Source: Bureau of Economic Analysis, US Department of Commerce, 2019 and 2022; Atkins, 2022.
A14: *Job multipliers are adjusted by GDP deflator
A16: Short-Term Construction Economic Impact in Miami-Dade and Broward Counties
A17: (Millions 2020 Dollars, FTE Job Years)
A18: Cost Category | B18: Cost | C18: Output | D18: Earnings | E18: Jobs
A19: Construction | B19: ='Capital Costs'!D14/1000000 -> 196.059721 | C19: =B19*B12 -> 393.9231914 | D19: =B19*C12 -> 135.5164792 | E19: =ROUND(D12*B19,-2) -> 2800
A20: ROW | B20: 0 | C20: - | D20: - | E20: -
A21: Total | B21: =SUM(B19:B20) -> 196.059721 | C21: =SUM(C19:C19) -> 393.9231914 | D21: =SUM(D19:D19) -> 135.5164792 | E21: =SUM(E19:E19) -> 2800
A22: Source: Atkins, 2022.
A24: =HYPERLINK("#'"&Title!$B$17&"'!A27","Go To Title Page") -> Go To Title Page

Sheet Capital Costs
A1: Capital Costs - 2020 $
A2: =HYPERLINK("#'"&Title!$B$17&"'!A27","Go To Title Page") -> Go To Title Page
B5: Planning & Design | C5: 1385442
B6: Right-of-Way | C6: 2773038
A7: Construction
B8: Construction | C8: 168059923
B9: Utilities | C9: 2512099 | D9: =C8+C9 -> 170572022
B10: Contract Bonus | C10: 4200000
B11: Construction Engineering | C11: 21287699
B12: Mitigation | C12: 0
B13: Total Cost | C13: =SUM(C5:C12) -> 200218201 | D13: =C13-C6 -> 197445163 | E13: w/o R/W
D14: =C13-SUM(C5:C6) -> 196059721 | E14: Costs without R/W and preliminary activities but including final design.
B16: Phase of Capital Costs (Year)
B17: Capital Costs ($)
B19: Table ES-2. Capital (Eligible Project) Costs by Year (2020 $)
B20: Year | C20: Alternative
B21: 2020 | C21: =C5+C6 -> 4158480 | E21: Final Design and Right-of-way | G21: 4852508
B22: 2021 | C22: 0
B23: 2022 | C23: 0
B24: 2023 | C24: 0
B25: 2024 | C25: 0
B26: 2025 | C26: =SUM($C$8:$C$11)*0.1 -> 19605972.1
B27: 2026 | C27: =SUM($C$8:$C$11)*0.4 -> 78423888.4
B28: 2027 | C28: =SUM($C$8:$C$11)*0.3 -> 58817916.3
B29: 2028 | C29: =SUM($C$8:$C$11)*0.2 -> 39211944.2
B30: Total | C30: =SUM(C21:C29) -> 200218201

Sheet Project Element Description
A1: Project Description Elements
A2: =HYPERLINK("#'"&Title!$B$17&"'!A27","Go To Title Page") -> Go To Title Page
A5: Summary of Geometric Changes – INTERCHANGE:
A6: SB Exit ramp at US 27:
A7: Existing lanes: T T/L L L
A8: Future lanes: T L L L
A9: Repave and restripe
A10: NB Exit ramp at US 27:
A11: Existing lanes: L L T/R R
A12: Future lanes: L L T T/R R/turbo (EB past N. 18th Ave. signal)
A13: Bridge widened for extra lane, turbo treatment B downstream of far right lane
A14: Three new directional ramps:
A15: Ramp A:
A16: NB 826 to WB US 27
A17: Elevated over both diamond ramp intersections and over NW 79th Ave. to west of interchange
A18: Ramp B:
A19: EB US 27 to SB 826
A20: Elevated over NW 79th Ave. intersection and westernmost of the diamond ramp intersection
A21: Ramp C:
A22: NB 826 to WB US 27
A23: Elevated over NW 79th Ave. to west of interchange and both diamond ramp intersections
A25: Summary of Geometric Changes – US 27 East:
A26: NW 18th Ave. intersection
A27: EB to NB left turn:
A28: Revised from 2 lane LT to 3 lane LT with added receiving lane.
A29: Turbo lane from ramp signal to the west is extended EB through this intersection.
A30: See attachment showing 3 lane LT EB (p 40).
A31: Summary of Geometric Changes – US 27 West:
A32: General: US 27 EB and WB lanes are shifted to accept Ramp A and Ramp B terminals
A33: US 27/NW 79th Ave. intersection
A34: Same basic lane arrangement with turbo intersection on US 27.
A35: NW South River Drive at NW 79th Ave. intersection
A36: SB to WB RT – new receiving lane for the RT
A37: WB to SB LT – goes from 1 lane to 2 LT lanes
A38: WB to NB RT – new RT only lane added
A39: US 27/Frontage Road intersection (near NW 95th St.)
A40: New inside lane for the WB end of new Ramp A.
A41: US 27 EB through lanes through turbo increased from 2 lanes to 3 lanes.
A42: SB approach from frontage road widened from 1 LT only lane to 2 LT only lanes
A43: N. Frontage Rd. Connection at N. Frontage Rd.
A44: WB LT lane longer
A45: NB approach widened by one lane for 2 LT only lanes and 1 RT only lane
A46: Geometry improved to better accommodate trucks

Sheet RIMS II Table 2.5
A1: Table 2.5 Total Multipliers - industry aggregations
A2: Region: Miami-Dade-Broward (Type II)
A3: Series: 2012 U.S. Benchmark I-O data and 2017 Regional Data
A4: =HYPERLINK("#'"&Title!$B$17&"'!A27","Go To Title Page") -> Go To Title Page
C5: Final-demand Output /1/ (dollars) | D5: Final-demand Earnings /2/ (dollars) | E5: Final-demand Employment /3/ (number of jobs) | F5: Final-demand Value-added /4/ (dollars) | G5: Direct-effect Earnings /5/ (dollars) | H5: Direct-effect Employment /6/ (number of jobs) | J5: Final-demand/ direct effect | K5: Final-demand output/ earnings | L5: Final-demand earnings/ jobs | M5: Final-demand output/ jobs
A6: 1 | B6: Farms | C6: 1.9427 | D6: 0.6224 | E6: 21.0239 | F6: 0.9081 | G6: 1.8105 | H6: 1.616
A7: 2 | B7: Forestry, fishing, and related activities | C7: 1.8832 | D7: 0.7937 | E7: 27.1193 | F7: 1.1803 | G7: 1.4995 | H7: 1.3511
A8: 3 | B8: Oil and gas extraction | C8: 1.5771 | D8: 0.4454 | E8: 10.3781 | F8: 0.9634 | G8: 1.6532 | H8: 1.7527
A9: 4 | B9: Mining (except oil and gas) | C9: 1.6953 | D9: 0.3724 | E9: 8.894 | F9: 0.9454 | G9: 2.3586 | H9: 2.3578
A10: 5 | B10: Support activities for mining | C10: 1.841 | D10: 0.5384 | E10: 12.6139 | F10: 1.0472 | G10: 1.9614 | H10: 2.0941
A11: 6 | B11: Utilities* | C11: 1.4997 | D11: 0.3029 | E11: 5.5106 | F11: 0.8844 | G11: 2.0578 | H11: 3.6425
A12: 7 | B12: Construction | C12: 2.0092 | D12: 0.6912 | E12: 15.5386 | F12: 1.1048 | G12: 1.743 | H12: 2.0124
A13: 8 | B13: Wood product manufacturing | C13: 1.6472 | D13: 0.3662 | E13: 8.6596 | F13: 0.6914 | G13: 2.0233 | H13: 2.1042
A14: 9 | B14: Nonmetallic mineral product manufacturing | C14: 1.8172 | D14: 0.4226 | E14: 9.301 | F14: 0.8947 | G14: 2.2153 | H14: 2.5346
A15: 10 | B15: Primary metal manufacturing | C15: 1.5722 | D15: 0.3127 | E15: 7.3737 | F15: 0.5607 | G15: 2.0391 | H15: 2.1304
A16: 11 | B16: Fabricated metal product manufacturing | C16: 1.6533 | D16: 0.4145 | E16: 9.4165 | F16: 0.7832 | G16: 1.8753 | H16: 2.0965
A17: 12 | B17: Machinery manufacturing | C17: 1.6141 | D17: 0.3361 | E17: 6.9884 | F17: 0.7306 | G17: 2.0931 | H17: 2.4977
A18: 13 | B18: Computer and electronic product manufacturing | C18: 1.5691 | D18: 0.4031 | E18: 6.9886 | F18: 1.0261 | G18: 1.7424 | H18: 2.5106
A19: 14 | B19: Electrical equipment, appliance, and component manufacturing | C19: 1.6063 | D19: 0.3745 | E19: 8.1259 | F19: 0.7758 | G19: 1.8699 | H19: 2.1113
A20: 15 | B20: Motor vehicles, bodies and trailers, and parts manufacturing | C20: 1.6914 | D20: 0.3372 | E20: 7.4136 | F20: 0.6039 | G20: 2.297 | H20: 2.5925
A21: 16 | B21: Other transportation equipment manufacturing | C21: 1.6369 | D21: 0.3793 | E21: 7.0797 | F21: 0.8033 | G21: 1.9385 | H21: 2.7144
A22: 17 | B22: Furniture and related product manufacturing | C22: 1.7976 | D22: 0.4397 | E22: 10.5607 | F22: 0.798 | G22: 2.1028 | H22: 2.1894
A23: 18 | B23: Miscellaneous manufacturing | C23: 1.7039 | D23: 0.4338 | E23: 9.5952 | F23: 0.9353 | G23: 1.9305 | H23: 2.2014
A24: 19 | B24: Food and beverage and tobacco product manufacturing | C24: 1.5517 | D24: 0.3114 | E24: 7.3596 | F24: 0.5527 | G24: 1.9828 | H24: 2.0611
A25: 20 | B25: Textile mills and textile product mills | C25: 1.805 | D25: 0.4478 | E25: 11.9349 | F25: 0.7668 | G25: 2.0816 | H25: 2.0203
A26: 21 | B26: Apparel, leather, and allied product manufacturing | C26: 1.9757 | D26: 0.7219 | E26: 26.967 | F26: 1.0946 | G26: 1.6956 | H26: 1.4169
A27: 22 | B27: Paper manufacturing | C27: 1.5665 | D27: 0.3191 | E27: 6.2892 | F27: 0.6201 | G27: 1.9976 | H27: 2.6462
A28: 23 | B28: Printing and related support activities | C28: 1.793 | D28: 0.4933 | E28: 12.8316 | F28: 0.9312 | G28: 1.9245 | H28: 1.9712
A29: 24 | B29: Petroleum and coal products manufacturing | C29: 1.4545 | D29: 0.2788 | E29: 5.3699 | F29: 0.4539 | G29: 1.8864 | H29: 2.4583
A30: 25 | B30: Chemical manufacturing | C30: 1.5538 | D30: 0.3212 | E30: 6.3556 | F30: 0.7078 | G30: 2.0144 | H30: 2.6062
A31: 26 | B31: Plastics and rubber products manufacturing | C31: 1.5497 | D31: 0.3085 | E31: 6.7008 | F31: 0.63 | G31: 2.0279 | H31: 2.3322
A32: 27 | B32: Wholesale trade | C32: 1.8811 | D32: 0.5129 | E32: 10.2345 | F32: 1.1354 | G32: 2.129 | H32: 3.0861
A33: 28 | B33: Motor vehicle and parts dealers | C33: 1.838 | D33: 0.6417 | E33: 14.2606 | F33: 1.2326 | G33: 1.6419 | H33: 1.9198
A34: 29 | B34: Food and beverage stores | C34: 1.9009 | D34: 0.6262 | E34: 22.711 | F34: 1.1808 | G34: 1.7251 | H34: 1.4683
A35: 30 | B35: General merchandise stores | C35: 1.8598 | D35: 0.575 | E35: 20.2541 | F35: 1.1542 | G35: 1.8155 | H35: 1.5002
A36: 31 | B36: Other retail | C36: 1.9408 | D36: 0.6087 | E36: 19.8679 | F36: 1.2085 | G36: 1.8307 | H36: 1.6118
A37: 32 | B37: Air transportation | C37: 1.7165 | D37: 0.3885 | E37: 7.7606 | F37: 0.8672 | G37: 2.3556 | H37: 4.0349
A38: 33 | B38: Rail transportation | C38: 1.8118 | D38: 0.4477 | E38: 8.1336 | F38: 0.9929 | G38: 2.2498 | H38: 3.9003
A39: 34 | B39: Water transportation | C39: 2.088 | D39: 0.4965 | E39: 11.42 | F39: 0.9113 | G39: 3.4646 | H39: 4.6709
A40: 35 | B40: Truck transportation | C40: 1.9935 | D40: 0.6133 | E40: 14.3446 | F40: 1.0202 | G40: 1.9918 | H40: 2.2187
A41: 36 | B41: Transit and ground passenger transportation* | C41: 1.9276 | D41: 0.618 | E41: 31.0157 | F41: 0.928 | G41: 1.8099 | H41: 1.2906
A42: 37 | B42: Pipeline transportation | C42: 2.0692 | D42: 0.8559 | E42: 14.1328 | F42: 1.3347 | G42: 1.6409 | H42: 2.6854
A43: 38 | B43: Other transportation and support activities* | C43: 2.0838 | D43: 0.703 | E43: 16.0382 | F43: 1.1668 | G43: 1.9264 | H43: 2.2019
A44: 39 | B44: Warehousing and storage | C44: 2.0116 | D44: 0.5396 | E44: 14.5225 | F44: 1.0486 | G44: 2.0695 | H44: 2.1788
A45: 40 | B45: Publishing industries (except Internet) | C45: 1.7685 | D45: 0.5272 | E45: 9.9103 | F45: 1.1485 | G45: 1.8525 | H45: 2.7337
A46: 41 | B46: Motion picture and sound recording industries | C46: 1.6933 | D46: 0.4098 | E46: 10.9373 | F46: 1.0523 | G46: 2.0154 | H46: 2.0372
A47: 42 | B47: Broadcasting (except Internet) and telecommunications | C47: 1.9767 | D47: 0.531 | E47: 11.1488 | F47: 1.0877 | G47: 2.2263 | H47: 3.1099
A48: 43 | B48: Data processing, hosting, and other information services | C48: 1.9553 | D48: 0.4664 | E48: 9.6304 | F48: 1.048 | G48: 2.803 | H48: 4.8631
A49: 44 | B49: Monetary Authorities-central bank, credit intermediation, and related services | C49: 1.8195 | D49: 0.5163 | E49: 10.548 | F49: 1.1826 | G49: 1.9756 | H49: 2.6984
A50: 45 | B50: Securities, commodity contracts, and other financial investments and related activities | C50: 2.1919 | D50: 0.7735 | E50: 22.3688 | F50: 1.211 | G50: 1.935 | H50: 1.7767
A51: 46 | B51: Insurance carriers and related activities | C51: 2.1764 | D51: 0.5441 | E51: 11.0712 | F51: 1.1735 | G51: 2.4276 | H51: 3.1122
A52: 47 | B52: Funds, trusts, and other financial vehicles | C52: 2.5609 | D52: 0.6521 | E52: 20.6984 | F52: 0.9816 | G52: 4.4717 | H52: 3.0147
A53: 48 | B53: Real estate | C53: 1.5887 | D53: 0.3275 | E53: 13.9229 | F53: 1.1016 | G53: 2.1827 | H53: 1.5104
A54: 49 | B54: Rental and leasing services and lessors of nonfinancial intangible assets | C54: 1.9046 | D54: 0.4929 | E54: 11.7648 | F54: 1.1297 | G54: 2.2391 | H54: 2.4855
A55: 50 | B55: Professional, scientific, and technical services | C55: 2.044 | D55: 0.8008 | E55: 16.6708 | F55: 1.3039 | G55: 1.6714 | H55: 2.1004
A56: 51 | B56: Management of companies and enterprises | C56: 1.9772 | D56: 0.6669 | E56: 12.3759 | F56: 1.231 | G56: 1.8283 | H56: 2.7646
A57: 52 | B57: Administrative and support services | C57: 2.0578 | D57: 0.7803 | E57: 23.2295 | F57: 1.2925 | G57: 1.7318 | H57: 1.6069
A58: 53 | B58: Waste management and remediation services | C58: 1.8492 | D58: 0.4918 | E58: 10.9048 | F58: 1.0128 | G58: 2.0628 | H58: 2.4637
A59: 54 | B59: Educational services | C59: 1.9663 | D59: 0.7284 | E59: 22.2262 | F59: 1.2865 | G59: 1.6279 | H59: 1.5646
A60: 55 | B60: Ambulatory health care services | C60: 2.067 | D60: 0.8134 | E60: 16.8571 | F60: 1.3112 | G60: 1.665 | H60: 2.0948
A61: 56 | B61: Hospitals | C61: 2.1051 | D61: 0.7329 | E61: 15.7291 | F61: 1.2287 | G61: 1.8677 | H61: 2.3258
A62: 57 | B62: Nursing and residential care facilities | C62: 2.0857 | D62: 0.7717 | E62: 23.5487 | F62: 1.2696 | G62: 1.714 | H62: 1.6395
A63: 58 | B63: Social assistance | C63: 2.0261 | D63: 0.721 | E63: 26.0248 | F63: 1.1905 | G63: 1.7047 | H63: 1.4798
A64: 59 | B64: Performing arts, spectator sports, museums, and related activities | C64: 2.0783 | D64: 0.7939 | E64: 28.88 | F64: 1.3683 | G64: 1.7755 | H64: 1.5538
A65: 60 | B65: Amusement, gambling, and recreation industries | C65: 1.9284 | D65: 0.5736 | E65: 18.642 | F65: 1.1513 | G65: 1.9174 | H65: 1.6736
A66: 61 | B66: Accommodation | C66: 1.8656 | D66: 0.5424 | E66: 14.3714 | F66: 1.1195 | G66: 1.9641 | H66: 1.9304
A67: 62 | B67: Food services and drinking places | C67: 1.9593 | D67: 0.611 | E67: 22.9138 | F67: 1.1045 | G67: 1.8628 | H67: 1.4911
A68: 63 | B68: Other services* | C68: 2.0209 | D68: 0.7134 | E68: 20.652 | F68: 1.1723 | G68: 1.762 | H68: 1.6809
A69: 64 | B69: Households | C69: 1.2044 | D69: 0.3644 | E69: 10.3117 | F69: 0.7299 | G69: 0 | H69: 0
A71: Footnotes:
A72: *Includes Government enterprises
A73: 1. Each entry in column 1 represents the total dollar change in output that occurs in all industries for each additional dollar of output delivered to final demand by the industry corresponding to the entry.
A74: 2. Each entry in column 2 represents the total dollar change in earnings of households employed by all industries for each additional dollar of output delivered to final demand by the industry corresponding to the entry.
A75: 3. Each entry in column 3 represents the total change in number of jobs that occurs in all industries for each additional 1 million dollars of output delivered to final demand by the industry corresponding to the entry. Because the employment multipliers are based on regional data, the output delivered to final demand should be in regional year dollars.
A76: 4. Each entry in column 4 represents the total dollar change in value added that occurs in all industries for each additional dollar of output delivered to final demand by the industry corresponding to the entry.
A77: 5. Each entry in column 5 represents the total dollar change in earnings of households employed by all industries for each additional dollar of earnings paid directly to households employed by the industry corresponding to the entry.
A78: 6. Each entry in column 6 represents the total change in number of jobs in all industries for each additional job in the industry corresponding to the entry.industries corresponding to the entries.
A79: NOTE.- Industry List B identifies the industries corresponding to the entries.
A80: SOURCE.--Regional Input-Output Modeling System (RIMS II), Regional Product Division, Bureau of Economic Analysis, 2019.
A82: =HYPERLINK("#'"&Title!$B$17&"'!A27","Go To Title Page") -> Go To Title Page

Sheet Full & Part-Time
A1: Table 6.4D. Full-Time and Part-Time Employees by Industry
A2: [Thousands]
A3: Bureau of Economic Analysis
A4: Last Revised on: July 30, 2021
A5: =HYPERLINK("#'"&Title!$B$17&"'!A27","Go To Title Page") -> Go To Title Page
A6: Line | C6: 2013 | D6: 2014 | E6: 2015 | F6: 2016 | G6: 2017 | H6: 2018 | I6: 2019 | J6: 2020
A8: 1 | B8: Full-time and part-time employees | C8: 141103 | D8: 143758 | E8: 146634 | F8: 148735 | G8: 150653 | H8: 153175 | I8: 155338 | J8: 146528
A9: 2 | B9: Domestic industries | C9: 142215 | D9: 145003 | E9: 147942 | F9: 150199 | G9: 152179 | H9: 154673 | I9: 156872 | J9: 147564
A10: 3 | B10: Private industries | C10: 117880 | D10: 120668 | E10: 123521 | F10: 125605 | G10: 127457 | H10: 129819 | I10: 131804 | J10: 123107
A11: 4 | B11: Agriculture, forestry, fishing, and hunting | C11: 1356 | D11: 1380 | E11: 1439 | F11: 1417 | G11: 1418 | H11: 1417 | I11: 1420 | J11: 1391
A12: 5 | B12: Farms1 | C12: 789 | D12: 803 | E12: 817 | F12: 820 | G12: 819 | H12: 814 | I12: 813 | J12: 809
A13: 6 | B13: Forestry, fishing, and related activities | C13: 567 | D13: 577 | E13: 623 | F13: 597 | G13: 599 | H13: 603 | I13: 607 | J13: 581
A14: 7 | B14: Mining | C14: 810 | D14: 842 | E14: 751 | F14: 611 | G14: 622 | H14: 672 | I14: 674 | J14: 539
A15: 8 | B15: Oil and gas extraction | C15: 197 | D15: 200 | E15: 196 | F15: 175 | G15: 144 | H15: 143 | I15: 142 | J15: 127
A16: 9 | B16: Mining, except oil and gas | C16: 210 | D16: 205 | E16: 197 | F16: 180 | G16: 185 | H16: 191 | I16: 192 | J16: 176
A17: 10 | B17: Support activities for mining | C17: 403 | D17: 436 | E17: 358 | F17: 255 | G17: 293 | H17: 339 | I17: 340 | J17: 236 | L17: 2019 | M17: 2020
A18: 11 | B18: Utilities | C18: 549 | D18: 550 | E18: 555 | F18: 555 | G18: 553 | H18: 553 | I18: 549 | J18: 545
A19: 12 | B19: Construction | C19: 5996 | D19: 6282 | E19: 6613 | F19: 6883 | G19: 7127 | H19: 7419 | I19: 7664 | J19: 7401 | K19: FTE/F&PT | L19: =1/(I19/FTE!I19) -> 0.9694676409 | M19: =1/(J19/FTE!J19) -> 0.966220781
A20: 13 | B20: Manufacturing | C20: 12023 | D20: 12189 | E20: 12332 | F20: 12335 | G20: 12440 | H20: 12672 | I20: 12806 | J20: 12109
A21: 14 | B21: Durable goods | C21: 7546 | D21: 7670 | E21: 7763 | F21: 7702 | G21: 7744 | H21: 7943 | I21: 8035 | J21: 7544
A22: 15 | B22: Wood products | C22: 355 | D22: 371 | E22: 381 | F22: 391 | G22: 398 | H22: 406 | I22: 407 | J22: 396
A23: 16 | B23: Nonmetallic mineral products | C23: 373 | D23: 383 | E23: 398 | F23: 407 | G23: 411 | H23: 416 | I23: 419 | J23: 398
A24: 17 | B24: Primary metals | C24: 398 | D24: 398 | E24: 393 | F24: 374 | G24: 370 | H24: 380 | I24: 387 | J24: 351
A25: 18 | B25: Fabricated metal products | C25: 1425 | D25: 1453 | E25: 1456 | F25: 1419 | G25: 1422 | H25: 1466 | I25: 1484 | J25: 1374
A26: 19 | B26: Machinery | C26: 1107 | D26: 1123 | E26: 1118 | F26: 1073 | G26: 1076 | H26: 1113 | I26: 1126 | J26: 1047
A27: 20 | B27: Computer and electronic products | C27: 1063 | D27: 1050 | E27: 1055 | F27: 1048 | G27: 1044 | H27: 1059 | I27: 1074 | J27: 1060
A28: 21 | B28: Electrical equipment, appliances, and components | C28: 376 | D28: 379 | E28: 382 | F28: 382 | G28: 386 | H28: 398 | I28: 401 | J28: 381
A29: 22 | B29: Motor vehicles, bodies and trailers, and parts | C29: 819 | D29: 871 | E29: 917 | F29: 945 | G29: 970 | H29: 1002 | I29: 999 | J29: 891
A30: 23 | B30: Other transportation equipment | C30: 689 | D30: 683 | E30: 693 | F30: 682 | G30: 678 | H30: 700 | I30: 734 | J30: 702
A31: 24 | B31: Furniture and related products | C31: 360 | D31: 370 | E31: 381 | F31: 391 | G31: 395 | H31: 394 | I31: 386 | J31: 361
A32: 25 | B32: Miscellaneous manufacturing | C32: 582 | D32: 588 | E32: 590 | F32: 592 | G32: 595 | H32: 610 | I32: 619 | J32: 583
A33: 26 | B33: Nondurable goods | C33: 4477 | D33: 4519 | E33: 4569 | F33: 4633 | G33: 4695 | H33: 4729 | I33: 4770 | J33: 4565
A34: 27 | B34: Food and beverage and tobacco products | C34: 1673 | D34: 1703 | E34: 1742 | F34: 1798 | G34: 1858 | H34: 1888 | I34: 1922 | J34: 1876
A35: 28 | B35: Textile mills and textile product mills | C35: 233 | D35: 235 | E35: 234 | F35: 230 | G35: 229 | H35: 228 | I35: 221 | J35: 197
A36: 29 | B36: Apparel and leather and allied products | C36: 174 | D36: 170 | E36: 166 | F36: 159 | G36: 149 | H36: 142 | I36: 137 | J36: 114
A37: 30 | B37: Paper products | C37: 377 | D37: 373 | E37: 372 | F37: 370 | G37: 368 | H37: 364 | I37: 371 | J37: 354
A38: 31 | B38: Printing and related support activities | C38: 455 | D38: 453 | E38: 450 | F38: 448 | G38: 441 | H38: 431 | I38: 425 | J38: 376
A39: 32 | B39: Petroleum and coal products | C39: 111 | D39: 110 | E39: 110 | F39: 111 | G39: 113 | H39: 113 | I39: 113 | J39: 109
A40: 33 | B40: Chemical products | C40: 795 | D40: 802 | E40: 808 | F40: 813 | G40: 823 | H40: 832 | I40: 850 | J40: 846
A41: 34 | B41: Plastics and rubber products | C41: 658 | D41: 674 | E41: 688 | F41: 702 | G41: 715 | H41: 730 | I41: 731 | J41: 693
A42: 35 | B42: Wholesale trade | C42: 5773 | D42: 5847 | E42: 5905 | F42: 5897 | G42: 5934 | H42: 5882 | I42: 5916 | J42: 5650
A43: 36 | B43: Durable goods | C43: 3330 | D43: 3373 | E43: 3412 | F43: 3408 | G43: 3443 | H43: 3438 | I43: 3476 | J43: 3339
A44: 37 | B44: Nondurable goods | C44: 2443 | D44: 2474 | E44: 2493 | F44: 2489 | G44: 2491 | H44: 2445 | I44: 2439 | J44: 2311
A45: 38 | B45: Retail trade | C45: 15200 | D45: 15462 | E45: 15777 | F45: 15960 | G45: 15989 | H45: 15933 | I45: 15751 | J45: 14892
A46: 39 | B46: Motor vehicle and parts dealers | C46: 1809 | D46: 1875 | E46: 1950 | F46: 1996 | G46: 2019 | H46: 2033 | I46: 2047 | J46: 1907
A47: 40 | B47: Food and beverage stores | C47: 2963 | D47: 3024 | E47: 3092 | F47: 3110 | G47: 3119 | H47: 3103 | I47: 3093 | J47: 3119
A48: 41 | B48: General merchandise stores | C48: 3083 | D48: 3129 | E48: 3188 | F48: 3222 | G48: 3130 | H48: 3111 | I48: 3033 | J48: 2942
A49: 42 | B49: Other retail2 | C49: 7346 | D49: 7434 | E49: 7548 | F49: 7632 | G49: 7720 | H49: 7686 | I49: 7577 | J49: 6924
A50: 43 | B50: Transportation and warehousing | C50: 4506 | D50: 4675 | E50: 4891 | F50: 5021 | G50: 5198 | H50: 5444 | I50: 5741 | J50: 5773
A51: 44 | B51: Air transportation | C51: 451 | D51: 452 | E51: 464 | F51: 478 | G51: 497 | H51: 506 | I51: 509 | J51: 465
A52: 45 | B52: Rail transportation | C52: 199 | D52: 204 | E52: 207 | F52: 190 | G52: 183 | H52: 182 | I52: 176 | J52: 156
A53: 46 | B53: Water transportation | C53: 67 | D53: 69 | E53: 68 | F53: 66 | G53: 65 | H53: 65 | I53: 67 | J53: 59
A54: 47 | B54: Truck transportation | C54: 1400 | D54: 1446 | E54: 1480 | F54: 1474 | G54: 1481 | H54: 1522 | I54: 1558 | J54: 1499
A55: 48 | B55: Transit and ground passenger transportation | C55: 458 | D55: 477 | E55: 487 | F55: 487 | G55: 490 | H55: 493 | I55: 505 | J55: 373
A56: 49 | B56: Pipeline transportation | C56: 44 | D56: 47 | E56: 49 | F56: 49 | G56: 50 | H56: 50 | I56: 51 | J56: 51
A57: 50 | B57: Other transportation and support activities3 | C57: 1173 | D57: 1232 | E57: 1302 | F57: 1344 | G57: 1401 | H57: 1481 | I57: 1623 | J57: 1696
A58: 51 | B58: Warehousing and storage | C58: 713 | D58: 749 | E58: 834 | F58: 933 | G58: 1031 | H58: 1145 | I58: 1251 | J58: 1474
A59: 52 | B59: Information | C59: 2719 | D59: 2747 | E59: 2772 | F59: 2817 | G59: 2804 | H59: 2821 | I59: 2856 | J59: 2715
A60: 53 | B60: Publishing industries (includes software) | C60: 842 | D60: 848 | E60: 862 | F60: 874 | G60: 884 | H60: 903 | I60: 941 | J60: 961
A61: 54 | B61: Motion picture and sound recording industries | C61: 385 | D61: 388 | E61: 412 | F61: 448 | G61: 428 | H61: 424 | I61: 437 | J61: 296
A62: 55 | B62: Broadcasting and telecommunications | C62: 1135 | D62: 1134 | E62: 1088 | F62: 1073 | G62: 1047 | H62: 1018 | I62: 980 | J62: 933
A63: 56 | B63: Information and data processing services | C63: 358 | D63: 377 | E63: 410 | F63: 422 | G63: 445 | H63: 476 | I63: 498 | J63: 524
A64: 57 | B64: Finance and insurance | C64: 5895 | D64: 5949 | E64: 6069 | F64: 6153 | G64: 6282 | H64: 6328 | I64: 6457 | J64: 6506
A65: 58 | B65: Federal Reserve banks, credit intermediation, and related activities | C65: 2633 | D65: 2583 | E65: 2585 | F65: 2627 | G65: 2677 | H65: 2661 | I65: 2678 | J65: 2689
A66: 59 | B66: Securities, commodity contracts, and investments | C66: 867 | D66: 884 | E66: 907 | F66: 922 | G66: 927 | H66: 945 | I66: 952 | J66: 948
A67: 60 | B67: Insurance carriers and related activities | C67: 2391 | D67: 2477 | E67: 2570 | F67: 2594 | G67: 2665 | H67: 2708 | I67: 2811 | J67: 2851
A68: 61 | B68: Funds, trusts, and other financial vehicles | C68: 4 | D68: 6 | E68: 7 | F68: 10 | G68: 13 | H68: 15 | I68: 17 | J68: 18
A69: 62 | B69: Real estate and rental and leasing | C69: 2043 | D69: 2074 | E69: 2137 | F69: 2173 | G69: 2230 | H69: 2294 | I69: 2373 | J69: 2237
A70: 63 | B70: Real estate | C70: 1499 | D70: 1518 | E70: 1568 | F70: 1597 | G70: 1648 | H70: 1704 | I70: 1767 | J70: 1728
A71: 64 | B71: Rental and leasing services and lessors of intangible assets4 | C71: 544 | D71: 556 | E71: 569 | F71: 575 | G71: 583 | H71: 591 | I71: 606 | J71: 509
A72: 65 | B72: Professional, scientific, and technical services | C72: 8209 | D72: 8442 | E72: 8719 | F72: 8932 | G72: 9101 | H72: 9384 | I72: 9635 | J72: 9547
A73: 66 | B73: Legal services | C73: 1145 | D73: 1134 | E73: 1135 | F73: 1140 | G73: 1151 | H73: 1158 | I73: 1169 | J73: 1147
A74: 67 | B74: Computer systems design and related services | C74: 1713 | D74: 1801 | E74: 1919 | F74: 1987 | G74: 2059 | H74: 2133 | I74: 2200 | J74: 2212
A75: 68 | B75: Miscellaneous professional, scientific, and technical services5 | C75: 5351 | D75: 5507 | E75: 5665 | F75: 5804 | G75: 5891 | H75: 6093 | I75: 6266 | J75: 6188
A76: 69 | B76: Management of companies and enterprises6 | C76: 2090 | D76: 2152 | E76: 2195 | F76: 2234 | G76: 2284 | H76: 2351 | I76: 2411 | J76: 2323
A77: 70 | B77: Administrative and waste management services | C77: 8337 | D77: 8633 | E77: 8874 | F77: 9046 | G77: 9151 | H77: 9315 | I77: 9372 | J77: 8625
A78: 71 | B78: Administrative and support services | C78: 7961 | D78: 8245 | E78: 8474 | F78: 8644 | G78: 8734 | H78: 8877 | I78: 8920 | J78: 8178
A79: 72 | B79: Waste management and remediation services | C79: 377 | D79: 388 | E79: 400 | F79: 402 | G79: 417 | H79: 437 | I79: 452 | J79: 446
A80: 73 | B80: Educational services | C80: 3403 | D80: 3467 | E80: 3540 | F80: 3606 | G80: 3662 | H80: 3722 | I80: 3769 | J80: 3493
A81: 74 | B81: Health care and social assistance | C81: 17850 | D81: 18154 | E81: 18644 | F81: 19204 | G81: 19575 | H81: 20019 | I81: 20445 | J81: 19829
A82: 75 | B82: Ambulatory health care services | C82: 6501 | D82: 6659 | E82: 6880 | F82: 7096 | G82: 7295 | H82: 7512 | I82: 7720 | J82: 7496
A83: 76 | B83: Hospitals | C83: 4778 | D83: 4762 | E83: 4889 | F83: 5009 | G83: 5073 | H83: 5125 | I83: 5180 | J83: 5117
A84: 77 | B84: Nursing and residential care facilities | C84: 3261 | D84: 3292 | E84: 3311 | F84: 3375 | G84: 3350 | H84: 3389 | I84: 3382 | J84: 3219
A85: 78 | B85: Social assistance | C85: 3309 | D85: 3441 | E85: 3564 | F85: 3724 | G85: 3857 | H85: 3993 | I85: 4164 | J85: 3998
A86: 79 | B86: Arts, entertainment, and recreation | C86: 2066 | D86: 2172 | E86: 2192 | F86: 2281 | G86: 2335 | H86: 2408 | I86: 2470 | J86: 1766
A87: 80 | B87: Performing arts, spectator sports, museums, and related activities | C87: 580 | D87: 613 | E87: 619 | F87: 641 | G87: 660 | H87: 683 | I87: 700 | J87: 478
A88: 81 | B88: Amusements, gambling, and recreation industries | C88: 1486 | D88: 1559 | E88: 1573 | F88: 1640 | G88: 1675 | H88: 1726 | I88: 1770 | J88: 1288
A89: 82 | B89: Accommodation and food services | C89: 12242 | D89: 12611 | E89: 13033 | F89: 13420 | G89: 13711 | H89: 13917 | I89: 14126 | J89: 11166
A90: 83 | B90: Accommodation | C90: 1856 | D90: 1891 | E90: 1930 | F90: 1951 | G90: 1992 | H90: 2025 | I90: 2065 | J90: 1406
A91: 84 | B91: Food services and drinking places | C91: 10386 | D91: 10720 | E91: 11103 | F91: 11469 | G91: 11719 | H91: 11892 | I91: 12062 | J91: 9760
A92: 85 | B92: Other services, except government | C92: 6812 | D92: 7041 | E92: 7081 | F92: 7061 | G92: 7042 | H92: 7268 | I92: 7368 | J92: 6600
A93: 86 | B93: Government | C93: 24335 | D93: 24336 | E93: 24421 | F93: 24594 | G93: 24721 | H93: 24854 | I93: 25068 | J93: 24457
A94: 87 | B94: Federal | C94: 5138 | D94: 5048 | E94: 5039 | F94: 5056 | G94: 5070 | H94: 5062 | I94: 5118 | J94: 5222
A95: 88 | B95: General government | C95: 4442 | D95: 4360 | E95: 4352 | F95: 4359 | G95: 4368 | H95: 4367 | I95: 4428 | J95: 4541
A96: 89 | B96: Civilian | C96: 2184 | D96: 2159 | E96: 2180 | F96: 2207 | G96: 2211 | H96: 2213 | I96: 2246 | J96: 2358
A97: 90 | B97: Military7 | C97: 2258 | D97: 2202 | E97: 2172 | F97: 2152 | G97: 2156 | H97: 2155 | I97: 2182 | J97: 2183
A98: 91 | B98: Government enterprises | C98: 696 | D98: 687 | E98: 687 | F98: 697 | G98: 703 | H98: 695 | I98: 690 | J98: 681
A99: 92 | B99: State and local | C99: 19197 | D99: 19288 | E99: 19382 | F99: 19538 | G99: 19651 | H99: 19792 | I99: 19949 | J99: 19235
A100: 93 | B100: General government | C100: 18037 | D100: 18122 | E100: 18215 | F100: 18357 | G100: 18468 | H100: 18596 | I100: 18745 | J100: 18092
A101: 94 | B101: Education | C101: 10274 | D101: 10316 | E101: 10371 | F101: 10437 | G101: 10507 | H101: 10563 | I101: 10644 | J101: 10156
A102: 95 | B102: Other8 | C102: 7763 | D102: 7806 | E102: 7844 | F102: 7920 | G102: 7961 | H102: 8033 | I102: 8101 | J102: 7936
A103: 96 | B103: Government enterprises8 | C103: 1160 | D103: 1166 | E103: 1167 | F103: 1181 | G103: 1183 | H103: 1196 | I103: 1204 | J103: 1143
A104: 97 | B104: Rest of the world9 | C104: -1112 | D104: -1245 | E104: -1307 | F104: -1464 | G104: -1526 | H104: -1498 | I104: -1534 | J104: -1036
A105: Legend / Footnotes:
A106: 1. NAICS crop and animal production.
A107: 2. Consists of furniture and home furnishings stores; electronics and appliance stores; building material and garden equipment and supplies dealers; health and personal care stores; gasoline stations; clothing and clothing accessories stores; sporting goods, hobby, book, and music stores; miscellaneous store retailers; and nonstore retailers.
A108: 3. Consists of scenic and sightseeing transportation; transportation support activities; and couriers and messengers.
A109: 4. Intangible assets include patents, trademarks, and franchise agreements, but not copyrights.
A110: 5. Consists of accounting, tax preparation, bookkeeping, and payroll services; architectural, engineering, and related services; specialized design services; management, scientific, and technical consulting services; scientific research and development services; advertising and related services; and other professional, scientific, and technical services.
A111: 6. Consists of offices of bank and other holding companies and of corporate, subsidiary, and regional managing offices.
A112: 7. Includes Coast Guard.
A113: 8. Employees of Indian tribal governments are classified in state and local government.
A114: 9. Includes estimates of foreign professional workers and undocumented Mexican migratory workers employed temporarily in the United States.
A115: Note. Estimates in this table are based on the 2012 North American Industry Classification System (NAICS).
A117: Source:
A118: https://www.bea.gov/data/employment/employment-by-industry
A119: Accessed April 20, 2022
A120: Atkins 2022.
A122: =HYPERLINK("#'"&Title!$B$17&"'!A27","Go To Title Page") -> Go To Title Page

Sheet FTE
A1: Table 6.5D. Full-Time Equivalent Employees by Industry
A2: [Thousands]
A3: Bureau of Economic Analysis
A4: Last Revised on: July 30, 2021
A5: =HYPERLINK("#'"&Title!$B$17&"'!A27","Go To Title Page") -> Go To Title Page
A6: Line | C6: 2013 | D6: 2014 | E6: 2015 | F6: 2016 | G6: 2017 | H6: 2018 | I6: 2019 | J6: 2020
A8: 1 | B8: Full-time equivalent employees1 | C8: 125540 | D8: 128130 | E8: 131007 | F8: 133022 | G8: 135118 | H8: 137598 | I8: 139614 | J8: 132167
A9: 2 | B9: Domestic industries | C9: 126606 | D9: 129326 | E9: 132262 | F9: 134426 | G9: 136581 | H9: 139034 | I9: 141085 | J9: 133161
A10: 3 | B10: Private industries | C10: 106686 | D10: 109296 | E10: 112269 | F10: 114150 | G10: 116189 | H10: 118451 | I10: 120457 | J10: 113082
A11: 4 | B11: Agriculture, forestry, fishing, and hunting | C11: 1167 | D11: 1187 | E11: 1239 | F11: 1219 | G11: 1220 | H11: 1219 | I11: 1222 | J11: 1197
A12: 5 | B12: Farms2 | C12: 676 | D12: 688 | E12: 700 | F12: 703 | G12: 702 | H12: 697 | I12: 697 | J12: 693
A13: 6 | B13: Forestry, fishing, and related activities | C13: 490 | D13: 499 | E13: 539 | F13: 516 | G13: 518 | H13: 522 | I13: 525 | J13: 503
A14: 7 | B14: Mining | C14: 797 | D14: 830 | E14: 740 | F14: 600 | G14: 615 | H14: 664 | I14: 663 | J14: 530
A15: 8 | B15: Oil and gas extraction | C15: 193 | D15: 197 | E15: 193 | F15: 172 | G15: 143 | H15: 141 | I15: 140 | J15: 124
A16: 9 | B16: Mining, except oil and gas | C16: 207 | D16: 203 | E16: 194 | F16: 177 | G16: 183 | H16: 189 | I16: 188 | J16: 173
A17: 10 | B17: Support activities for mining | C17: 396 | D17: 430 | E17: 353 | F17: 251 | G17: 289 | H17: 334 | I17: 335 | J17: 232
A18: 11 | B18: Utilities | C18: 540 | D18: 544 | E18: 547 | F18: 549 | G18: 547 | H18: 546 | I18: 544 | J18: 541
A19: 12 | B19: Construction | C19: 5754 | D19: 6043 | E19: 6378 | F19: 6640 | G19: 6892 | H19: 7176 | I19: 7430 | J19: 7151
A20: 13 | B20: Manufacturing | C20: 11742 | D20: 11917 | E20: 12075 | F20: 12039 | G20: 12180 | H20: 12389 | I20: 12524 | J20: 11840
A21: 14 | B21: Durable goods | C21: 7403 | D21: 7537 | E21: 7626 | F21: 7552 | G21: 7600 | H21: 7795 | I21: 7891 | J21: 7416
A22: 15 | B22: Wood products | C22: 343 | D22: 364 | E22: 370 | F22: 381 | G22: 387 | H22: 398 | I22: 398 | J22: 389
A23: 16 | B23: Nonmetallic mineral products | C23: 365 | D23: 375 | E23: 389 | F23: 396 | G23: 402 | H23: 411 | I23: 413 | J23: 389
A24: 17 | B24: Primary metals | C24: 391 | D24: 391 | E24: 386 | F24: 365 | G24: 360 | H24: 371 | I24: 379 | J24: 344
A25: 18 | B25: Fabricated metal products | C25: 1399 | D25: 1427 | E25: 1429 | F25: 1386 | G25: 1386 | H25: 1432 | I25: 1453 | J25: 1348
A26: 19 | B26: Machinery | C26: 1086 | D26: 1107 | E26: 1100 | F26: 1056 | G26: 1059 | H26: 1095 | I26: 1105 | J26: 1030
A27: 20 | B27: Computer and electronic products | C27: 1048 | D27: 1033 | E27: 1042 | F27: 1033 | G27: 1029 | H27: 1039 | I27: 1059 | J27: 1047
A28: 21 | B28: Electrical equipment, appliances, and components | C28: 368 | D28: 373 | E28: 376 | F28: 376 | G28: 383 | H28: 391 | I28: 393 | J28: 375
A29: 22 | B29: Motor vehicles, bodies and trailers, and parts | C29: 810 | D29: 863 | E29: 906 | F29: 934 | G29: 959 | H29: 990 | I29: 987 | J29: 881
A30: 23 | B30: Other transportation equipment | C30: 681 | D30: 677 | E30: 685 | F30: 674 | G30: 670 | H30: 692 | I30: 726 | J30: 694
A31: 24 | B31: Furniture and related products | C31: 350 | D31: 359 | E31: 370 | F31: 380 | G31: 384 | H31: 384 | I31: 375 | J31: 351
A32: 25 | B32: Miscellaneous manufacturing | C32: 561 | D32: 567 | E32: 573 | F32: 571 | G32: 579 | H32: 592 | I32: 603 | J32: 569
A33: 26 | B33: Nondurable goods | C33: 4339 | D33: 4380 | E33: 4450 | F33: 4487 | G33: 4580 | H33: 4594 | I33: 4633 | J33: 4423
A34: 27 | B34: Food and beverage and tobacco products | C34: 1599 | D34: 1626 | E34: 1674 | F34: 1719 | G34: 1789 | H34: 1812 | I34: 1843 | J34: 1789
A35: 28 | B35: Textile mills and textile product mills | C35: 224 | D35: 224 | E35: 226 | F35: 221 | G35: 222 | H35: 220 | I35: 212 | J35: 190
A36: 29 | B36: Apparel and leather and allied products | C36: 167 | D36: 162 | E36: 160 | F36: 153 | G36: 145 | H36: 137 | I36: 131 | J36: 109
A37: 30 | B37: Paper products | C37: 367 | D37: 362 | E37: 364 | F37: 361 | G37: 360 | H37: 354 | I37: 359 | J37: 346
A38: 31 | B38: Printing and related support activities | C38: 443 | D38: 440 | E38: 441 | F38: 438 | G38: 431 | H38: 419 | I38: 412 | J38: 367
A39: 32 | B39: Petroleum and coal products | C39: 110 | D39: 110 | E39: 109 | F39: 109 | G39: 112 | H39: 112 | I39: 112 | J39: 108
A40: 33 | B40: Chemical products | C40: 786 | D40: 791 | E40: 797 | F40: 798 | G40: 815 | H40: 820 | I40: 838 | J40: 832
A41: 34 | B41: Plastics and rubber products | C41: 644 | D41: 665 | E41: 680 | F41: 689 | G41: 705 | H41: 720 | I41: 725 | J41: 682
A42: 35 | B42: Wholesale trade | C42: 5550 | D42: 5633 | E42: 5688 | F42: 5681 | G42: 5743 | H42: 5707 | I42: 5725 | J42: 5477
A43: 36 | B43: Durable goods | C43: 3201 | D43: 3249 | E43: 3286 | F43: 3283 | G43: 3332 | H43: 3335 | I43: 3364 | J43: 3237
A44: 37 | B44: Nondurable goods | C44: 2349 | D44: 2383 | E44: 2402 | F44: 2398 | G44: 2411 | H44: 2372 | I44: 2361 | J44: 2240
A45: 38 | B45: Retail trade | C45: 13034 | D45: 13253 | E45: 13598 | F45: 13794 | G45: 13852 | H45: 13809 | I45: 13721 | J45: 13049
A46: 39 | B46: Motor vehicle and parts dealers | C46: 1551 | D46: 1607 | E46: 1680 | F46: 1725 | G46: 1749 | H46: 1762 | I46: 1783 | J46: 1671
A47: 40 | B47: Food and beverage stores | C47: 2540 | D47: 2592 | E47: 2665 | F47: 2688 | G47: 2702 | H47: 2689 | I47: 2695 | J47: 2733
A48: 41 | B48: General merchandise stores | C48: 2643 | D48: 2682 | E48: 2748 | F48: 2785 | G48: 2712 | H48: 2697 | I48: 2643 | J48: 2578
A49: 42 | B49: Other retail3 | C49: 6299 | D49: 6372 | E49: 6505 | F49: 6596 | G49: 6688 | H49: 6661 | I49: 6601 | J49: 6066
A50: 43 | B50: Transportation and warehousing | C50: 4249 | D50: 4420 | E50: 4635 | F50: 4725 | G50: 4902 | H50: 5134 | I50: 5414 | J50: 5426
A51: 44 | B51: Air transportation | C51: 426 | D51: 427 | E51: 439 | F51: 450 | G51: 468 | H51: 477 | I51: 480 | J51: 437
A52: 45 | B52: Rail transportation | C52: 188 | D52: 193 | E52: 196 | F52: 179 | G52: 173 | H52: 172 | I52: 166 | J52: 147
A53: 46 | B53: Water transportation | C53: 63 | D53: 65 | E53: 65 | F53: 62 | G53: 61 | H53: 61 | I53: 63 | J53: 56
A54: 47 | B54: Truck transportation | C54: 1320 | D54: 1367 | E54: 1402 | F54: 1387 | G54: 1397 | H54: 1435 | I54: 1470 | J54: 1409
A55: 48 | B55: Transit and ground passenger transportation | C55: 432 | D55: 451 | E55: 462 | F55: 458 | G55: 462 | H55: 465 | I55: 476 | J55: 350
A56: 49 | B56: Pipeline transportation | C56: 41 | D56: 44 | E56: 46 | F56: 46 | G56: 47 | H56: 47 | I56: 48 | J56: 48
A57: 50 | B57: Other transportation and support activities4 | C57: 1106 | D57: 1165 | E57: 1234 | F57: 1265 | G57: 1322 | H57: 1397 | I57: 1531 | J57: 1594
A58: 51 | B58: Warehousing and storage | C58: 672 | D58: 708 | E58: 791 | F58: 878 | G58: 972 | H58: 1080 | I58: 1180 | J58: 1385
A59: 52 | B59: Information | C59: 2533 | D59: 2569 | E59: 2576 | F59: 2632 | G59: 2613 | H59: 2628 | I59: 2642 | J59: 2534
A60: 53 | B60: Publishing industries (includes software) | C60: 759 | D60: 778 | E60: 779 | F60: 798 | G60: 803 | H60: 816 | I60: 836 | J60: 866
A61: 54 | B61: Motion picture and sound recording industries | C61: 330 | D61: 326 | E61: 349 | F61: 384 | G61: 370 | H61: 368 | I61: 389 | J61: 268
A62: 55 | B62: Broadcasting and telecommunications | C62: 1107 | D62: 1110 | E62: 1064 | F62: 1054 | G62: 1026 | H62: 1000 | I62: 963 | J62: 914
A63: 56 | B63: Information and data processing services | C63: 337 | D63: 355 | E63: 384 | F63: 396 | G63: 414 | H63: 444 | I63: 454 | J63: 486
A64: 57 | B64: Finance and insurance | C64: 5714 | D64: 5774 | E64: 5897 | F64: 5964 | G64: 6103 | H64: 6171 | I64: 6296 | J64: 6351
A65: 58 | B65: Federal Reserve banks, credit intermediation, and related activities | C65: 2553 | D65: 2510 | E65: 2518 | F65: 2547 | G65: 2601 | H65: 2598 | I65: 2615 | J65: 2631
A66: 59 | B66: Securities, commodity contracts, and investments | C66: 841 | D66: 859 | E66: 883 | F66: 893 | G66: 901 | H66: 922 | I66: 929 | J66: 928
A67: 60 | B67: Insurance carriers and related activities | C67: 2316 | D67: 2400 | E67: 2490 | F67: 2513 | G67: 2588 | H67: 2636 | I67: 2736 | J67: 2775
A68: 61 | B68: Funds, trusts, and other financial vehicles | C68: 3 | D68: 6 | E68: 7 | F68: 10 | G68: 12 | H68: 14 | I68: 16 | J68: 18
A69: 62 | B69: Real estate and rental and leasing | C69: 1873 | D69: 1906 | E69: 1955 | F69: 2000 | G69: 2051 | H69: 2106 | I69: 2185 | J69: 2067
A70: 63 | B70: Real estate | C70: 1369 | D70: 1394 | E70: 1429 | F70: 1462 | G70: 1501 | H70: 1552 | I70: 1621 | J70: 1590
A71: 64 | B71: Rental and leasing services and lessors of intangible assets5 | C71: 504 | D71: 512 | E71: 527 | F71: 538 | G71: 550 | H71: 554 | I71: 564 | J71: 476
A72: 65 | B72: Professional, scientific, and technical services | C72: 7794 | D72: 7994 | E72: 8273 | F72: 8496 | G72: 8655 | H72: 8948 | I72: 9233 | J72: 9117
A73: 66 | B73: Legal services | C73: 1088 | D73: 1074 | E73: 1077 | F73: 1084 | G73: 1095 | H73: 1104 | I73: 1120 | J73: 1096
A74: 67 | B74: Computer systems design and related services | C74: 1626 | D74: 1705 | E74: 1821 | F74: 1891 | G74: 1958 | H74: 2034 | I74: 2108 | J74: 2113
A75: 68 | B75: Miscellaneous professional, scientific, and technical services6 | C75: 5080 | D75: 5215 | E75: 5375 | F75: 5521 | G75: 5602 | H75: 5810 | I75: 6005 | J75: 5909
A76: 69 | B76: Management of companies and enterprises7 | C76: 1978 | D76: 2004 | E76: 2071 | F76: 2130 | G76: 2182 | H76: 2243 | I76: 2258 | J76: 2263
A77: 70 | B77: Administrative and waste management services | C77: 7607 | D77: 7901 | E77: 8183 | F77: 8322 | G77: 8459 | H77: 8615 | I77: 8671 | J77: 8005
A78: 71 | B78: Administrative and support services | C78: 7246 | D78: 7525 | E78: 7795 | F78: 7933 | G78: 8058 | H78: 8193 | I78: 8235 | J78: 7573
A79: 72 | B79: Waste management and remediation services | C79: 362 | D79: 376 | E79: 387 | F79: 389 | G79: 402 | H79: 422 | I79: 435 | J79: 432
A80: 73 | B80: Educational services | C80: 3043 | D80: 3083 | E80: 3153 | F80: 3205 | G80: 3278 | H80: 3336 | I80: 3368 | J80: 3182
A81: 74 | B81: Health care and social assistance | C81: 16129 | D81: 16441 | E81: 16901 | F81: 17362 | G81: 17822 | H81: 18255 | I81: 18614 | J81: 18183
A82: 75 | B82: Ambulatory health care services | C82: 5831 | D82: 6004 | E82: 6189 | F82: 6388 | G82: 6615 | H82: 6826 | I82: 7001 | J82: 6839
A83: 76 | B83: Hospitals | C83: 4502 | D83: 4499 | E83: 4630 | F83: 4722 | G83: 4806 | H83: 4856 | I83: 4907 | J83: 4868
A84: 77 | B84: Nursing and residential care facilities | C84: 2925 | D84: 2968 | E84: 2978 | F84: 3038 | G84: 3037 | H84: 3079 | I84: 3067 | J84: 2937
A85: 78 | B85: Social assistance | C85: 2871 | D85: 2970 | E85: 3104 | F85: 3214 | G85: 3364 | H85: 3494 | I85: 3638 | J85: 3538
A86: 79 | B86: Arts, entertainment, and recreation | C86: 1689 | D86: 1784 | E86: 1800 | F86: 1866 | G86: 1910 | H86: 1993 | I86: 2040 | J86: 1466
A87: 80 | B87: Performing arts, spectator sports, museums, and related activities | C87: 474 | D87: 504 | E87: 509 | F87: 524 | G87: 540 | H87: 565 | I87: 578 | J87: 397
A88: 81 | B88: Amusements, gambling, and recreation industries | C88: 1215 | D88: 1280 | E88: 1292 | F88: 1342 | G88: 1370 | H88: 1428 | I88: 1462 | J88: 1069
A89: 82 | B89: Accommodation and food services | C89: 9822 | D89: 10115 | E89: 10566 | F89: 10920 | G89: 11163 | H89: 11342 | I89: 11591 | J89: 9001
A90: 83 | B90: Accommodation | C90: 1686 | D90: 1709 | E90: 1753 | F90: 1778 | G90: 1804 | H90: 1839 | I90: 1890 | J90: 1266
A91: 84 | B91: Food services and drinking places | C91: 8135 | D91: 8407 | E91: 8813 | F91: 9142 | G91: 9358 | H91: 9502 | I91: 9701 | J91: 7735
A92: 85 | B92: Other services, except government | C92: 5670 | D92: 5897 | E92: 5993 | F92: 6003 | G92: 6004 | H92: 6173 | I92: 6315 | J92: 5704
A93: 86 | B93: Government | C93: 19920 | D93: 20031 | E93: 19993 | F93: 20276 | G93: 20392 | H93: 20582 | I93: 20628 | J93: 20079
A94: 87 | B94: Federal | C94: 4201 | D94: 4135 | E94: 4137 | F94: 4167 | G94: 4149 | H94: 4165 | I94: 4104 | J94: 3904
A95: 88 | B95: General government | C95: 3654 | D95: 3590 | E95: 3576 | F95: 3574 | G95: 3588 | H95: 3608 | I95: 3552 | J95: 3359
A96: 89 | B96: Civilian | C96: 2108 | D96: 2091 | E96: 2102 | F96: 2114 | G96: 2121 | H96: 2132 | I96: 2052 | J96: 1854
A97: 90 | B97: Military8 | C97: 1546 | D97: 1499 | E97: 1474 | F97: 1460 | G97: 1467 | H97: 1476 | I97: 1499 | J97: 1505
A98: 91 | B98: Government enterprises | C98: 547 | D98: 545 | E98: 562 | F98: 592 | G98: 562 | H98: 557 | I98: 552 | J98: 545
A99: 92 | B99: State and local | C99: 15719 | D99: 15896 | E99: 15856 | F99: 16109 | G99: 16243 | H99: 16417 | I99: 16524 | J99: 16175
A100: 93 | B100: General government | C100: 14657 | D100: 14812 | E100: 14790 | F100: 15025 | G100: 15155 | H100: 15311 | I100: 15394 | J100: 15066
A101: 94 | B101: Education | C101: 8166 | D101: 8252 | E101: 8250 | F101: 8392 | G101: 8477 | H101: 8531 | I101: 8454 | J101: 8066
A102: 95 | B102: Other9 | C102: 6491 | D102: 6560 | E102: 6540 | F102: 6633 | G102: 6678 | H102: 6780 | I102: 6940 | J102: 7000
A103: 96 | B103: Government enterprises9 | C103: 1062 | D103: 1084 | E103: 1066 | F103: 1084 | G103: 1088 | H103: 1106 | I103: 1130 | J103: 1109
A104: 97 | B104: Rest of the world10 | C104: -1066 | D104: -1196 | E104: -1255 | F104: -1404 | G104: -1463 | H104: -1436 | I104: -1471 | J104: -994
A105: Legend / Footnotes:
A106: 1. Full-time equivalent employees equals the number of employees on full-time schedules plus the number of employees on part-time schedules converted to a full-time basis. The number of full-time equivalent employees in each industry is the product of the total number of employees and the ratio of average weekly hours per employee for all employees to the average weekly hours per employee on full-time schedules.
A107: 2. NAICS crop and animal production.
A108: 3. Consists of furniture and home furnishings stores; electronics and appliance stores; building material and garden equipment and supplies dealers; health and personal care stores; gasoline stations; clothing and clothing accessories stores; sporting goods, hobby, book, and music stores; miscellaneous store retailers; and nonstore retailers.
A109: 4. Consists of scenic and sightseeing transportation; transportation support activities; and couriers and messengers.
A110: 5. Intangible assets include patents, trademarks, and franchise agreements, but not copyrights.
A111: 6. Consists of accounting, tax preparation, bookkeeping, and payroll services; architectural, engineering, and related services; specialized design services; management, scientific, and technical consulting services; scientific research and development services; advertising and related services; and other professional, scientific, and technical services.
A112: 7. Consists of offices of bank and other holding companies and of corporate, subsidiary, and regional managing offices.
A113: 8. Includes Coast Guard.
A114: 9. Employees of Indian tribal governments are classified in state and local government.
A115: 10. Includes estimates of foreign professional workers and undocumented Mexican migratory workers employed temporarily in the United States.
A116: Note. Estimates in this table are based on the 2012 North American Industry Classification System (NAICS).
A118: Source:
A119: https://www.bea.gov/data/employment/employment-by-industry
A120: Accessed April 20, 2022
A123: =HYPERLINK("#'"&Title!$B$17&"'!A27","Go To Title Page") -> Go To Title Page

Sheet Deflator
A1: Inflation Adjustment Values
A2: =HYPERLINK("#'"&Title!$B$17&"'!A27","Go To Title Page") -> Go To Title Page
A5: Base Year of Nominal Dollar | B5: Multiplier to Adjust to Real $
B6: $2020 | C6: $2021 | D6: $2022
A7: 2003 | B7: 1.375467474 | C7: 1.432617247 | D7: =C7*$D$25 -> 1.492141555
A8: 2004 | B8: 1.339509447 | C8: 1.395165187 | D8: 1.453133388
A9: 2005 | B9: 1.298774913 | C9: 1.352738161 | D9: 1.408943546
A10: 2006 | B10: 1.259899783 | C10: 1.312247794 | D10: 1.366770831
A11: 2007 | B11: 1.22674381 | C11: 1.277714212 | D11: 1.330802401
A12: 2008 | B12: 1.203656044 | C12: 1.253667164 | D12: 1.305756214
A13: 2009 | B13: 1.195992591 | C13: 1.245685301 | D13: 1.297442709
A14: 2010 | B14: 1.181789822 | C14: 1.230892415 | D14: 1.282035189
A15: 2011 | B15: 1.157736034 | C15: 1.205839208 | D15: 1.255941038
A16: 2012 | B16: 1.13648 | C16: 1.1837 | D16: 1.23288196
A17: 2013 | B17: 1.116922684 | C17: 1.16333009 | D17: 1.211665694
A18: 2014 | B18: 1.096416926 | C18: 1.141972331 | D18: 1.189420534
A19: 2015 | B19: 1.085556543 | C19: 1.130660706 | D19: 1.177638918
A20: 2016 | B20: 1.074787214 | C20: 1.119443919 | D20: 1.165956081 | F20: Comparison of 2017-2019 adjustments
A21: 2017 | B21: 1.054767186 | C21: 1.098592072 | D21: 1.144237854 | F21: =1.010181^3 -> 1.030855014 | G21: FDOT old
A22: 2018 | B22: 1.03015745 | C22: 1.072959817 | D22: 1.117540595 | F22: =1.01081^2*1.026 -> 1.048302014 | G22: FDOT newer
A23: 2019 | B23: 1.012057634 | C23: 1.054107967 | D23: 1.097905463 | F23: 1.0548 | G23: FHWA--use since more conservative
A24: 2020 | B24: 1 | C24: 1.041549345 | D24: 1.084825039
A25: 2021 | B25: - | C25: 1 | D25: 1.041549345
A26: 2022 | B26: - | C26: - | D26: 1
A27: Source: Benefit-Cost Analysis Guidance for Discretionary Grant Programs, U.S. DOT, March 2022, Table A-7, for $2020. Atkins $2021 update per 2021 BEA data from Table 1.1.9 below (revised March 30, 2022); Atkins $2022 estimate per assumption of same factor in 2022 as 2021.
A64: Source: Atkins, 2022, and | B64: https://apps.bea.gov/iTable/iTable.cfm?reqid=19&step=3&isuri=1&1921=survey&1903=11#reqid=19&step=3&isuri=1&1921=survey&1903=11 | K64: (April 19, 2022)
A66: Table 1.1.9. Implicit Price Deflators for Gross Domestic Product
A67: [Index numbers, 2012=100]
A68: Bureau of Economic Analysis
A69: Last Revised on: March 30, 2022 - Next Release Date April 28, 2022
A71: Cumulative to 2020 | C71: =$T$76/C76 -> 1.375467474 | D71: 1.339509447 | E71: 1.298774913 | F71: 1.259899783 | G71: 1.22674381 | H71: 1.203656044 | I71: 1.195992591 | J71: 1.181789822 | K71: 1.157736034 | L71: 1.13648 | M71: 1.116922684 | N71: 1.096416926 | O71: 1.085556543 | P71: 1.074787214 | Q71: 1.054767186 | R71: 1.03015745 | S71: 1.012057634 | T71: =$T$76/T76 -> 1
A72: Cumulative to 2021 | C72: =$U$76/C76 -> 1.432617247 | D72: 1.395165187 | E72: 1.352738161 | F72: 1.312247794 | G72: 1.277714212 | H72: 1.253667164 | I72: 1.245685301 | J72: 1.230892415 | K72: 1.205839208 | L72: 1.1837 | M72: 1.16333009 | N72: 1.141972331 | O72: 1.130660706 | P72: 1.119443919 | Q72: 1.098592072 | R72: 1.072959817 | S72: 1.054107967 | T72: 1.041549345 | U72: =$U$76/U76 -> 1
A73: Year by Year | D73: =D76/C76 -> 1.026844175 | E73: =E76/D76 -> 1.031363813 | F73: 1.030855732 | G73: 1.027027626 | H73: 1.019181365 | I73: 1.006407609 | J73: 1.012018017 | K73: 1.020776574 | L73: 1.018703394 | M73: 1.01751 | N73: 1.018702519 | O73: 1.010004438 | P73: 1.010019964 | Q73: 1.018980518 | R73: 1.023889296 | S73: 1.017884174 | T73: 1.012057634 | U73: 1.041549345
A74: Line | C74: 2003 | D74: 2004 | E74: 2005 | F74: 2006 | G74: 2007 | H74: 2008 | I74: 2009 | J74: 2010 | K74: 2011 | L74: 2012 | M74: 2013 | N74: 2014 | O74: 2015 | P74: 2016 | Q74: 2017 | R74: 2018 | S74: 2019 | T74: 2020 | U74: 2021
A75: Line
A76: 1 | B76: Gross domestic product | C76: 82.625 | D76: 84.843 | E76: 87.504 | F76: 90.204 | G76: 92.642 | H76: 94.419 | I76: 95.024 | J76: 96.166 | K76: 98.164 | L76: 100 | M76: 101.751 | N76: 103.654 | O76: 104.691 | P76: 105.74 | Q76: 107.747 | R76: 110.321 | S76: 112.294 | T76: 113.648 | U76: 118.37
A77: 2 | B77: Personal consumption expenditures | C77: 82.398 | D77: 84.443 | E77: 86.876 | F77: 89.322 | G77: 91.614 | H77: 94.325 | I77: 94.062 | J77: 95.747 | K77: 98.17 | L77: 100 | M77: 101.354 | N77: 102.887 | O77: 103.116 | P77: 104.148 | Q77: 106.051 | R77: 108.318 | S77: 109.922 | T77: 111.225 | U77: 115.536
A78: 3 | B78: Goods | C78: 88.054 | D78: 89.292 | E78: 91.084 | F78: 92.306 | G78: 93.331 | H78: 96.122 | I78: 93.812 | J78: 95.183 | K78: 98.773 | L78: 100 | M78: 99.407 | N78: 98.92 | O78: 95.896 | P78: 94.332 | Q78: 94.615 | R78: 95.281 | S78: 94.832 | T78: 94.16 | U78: 98.874
A79: 4 | B79: Durable goods | C79: 115.752 | D79: 113.488 | E79: 112.309 | F79: 110.388 | G79: 108.038 | H79: 106.012 | I79: 104.02 | J79: 102.107 | K79: 101.28 | L79: 100 | M79: 97.968 | N79: 95.429 | O79: 93.358 | P79: 91.141 | Q79: 89.05 | R79: 87.544 | S79: 86.488 | T79: 85.784 | U79: 91.064
A80: 5 | B80: Nondurable goods | C80: 76.327 | D80: 78.97 | E80: 81.998 | F80: 84.553 | G80: 87.041 | H80: 91.904 | I80: 89.467 | J80: 92.182 | K80: 97.652 | L80: 100 | M80: 100.082 | N80: 100.599 | O80: 97.092 | P80: 95.876 | Q80: 97.451 | R80: 99.343 | S80: 99.249 | T80: 98.602 | U80: 102.852
A81: 6 | B81: Services | C81: 79.574 | D81: 82.018 | E81: 84.774 | F81: 87.844 | G81: 90.786 | H81: 93.458 | I81: 94.182 | J81: 96.017 | K81: 97.875 | L81: 100 | M81: 102.322 | N81: 104.88 | O81: 106.796 | P81: 109.197 | Q81: 111.965 | R81: 115.1 | S81: 117.836 | T81: 120.302 | U81: 124.243
A82: 7 | B82: Gross private domestic investment | C82: 88.503 | D82: 91.157 | E82: 94.913 | F82: 98.13 | G82: 99.585 | H82: 100.597 | I82: 99.366 | J82: 97.699 | K82: 98.748 | L82: 100 | M82: 100.876 | N82: 102.872 | O82: 103.697 | P82: 103.726 | Q82: 105.258 | R82: 107.156 | S82: 108.991 | T82: 109.698 | U82: 113.185
A83: 8 | B83: Fixed investment | C83: 88.265 | D83: 90.843 | E83: 94.597 | F83: 97.958 | G83: 99.456 | H83: 100.296 | I83: 99.076 | J83: 97.568 | K83: 98.641 | L83: 100 | M83: 101.091 | N83: 103.172 | O83: 104.075 | P83: 104.202 | Q83: 105.928 | R83: 107.925 | S83: 109.684 | T83: 111.052 | U83: 115.386
A84: 9 | B84: Nonresidential | C84: 91.156 | D84: 92.055 | E84: 94.443 | F84: 96.745 | G84: 98.31 | H84: 99.832 | I84: 99.184 | J84: 97.416 | K84: 98.559 | L84: 100 | M84: 100.251 | N84: 101.469 | O84: 101.909 | P84: 101.119 | Q84: 101.977 | R84: 102.815 | S84: 104.137 | T84: 104.813 | U84: 106.457
A85: 10 | B85: Structures | C85: 62.769 | D85: 67.416 | E85: 75.733 | F85: 84.749 | G85: 89.748 | H85: 94.335 | I85: 92.613 | J85: 92.006 | K85: 95.362 | L85: 100 | M85: 101.455 | N85: 107.198 | O85: 109.403 | P85: 109.67 | Q85: 112.545 | R85: 114.391 | S85: 119.058 | T85: 120.852 | U85: 127.617
A86: 11 | B86: Equipment | C86: 105.725 | D86: 104.841 | E86: 104.598 | F86: 103.56 | G86: 103.191 | H86: 102.542 | I86: 103.168 | J86: 99.471 | K86: 99.447 | L86: 100 | M86: 99.787 | N86: 99.169 | O86: 98.671 | P86: 97.593 | Q86: 97.543 | R86: 97.683 | S86: 97.816 | T86: 97.388 | U86: 97.712
A87: 12 | B87: Intellectual property products | C87: 95.647 | D87: 95.335 | E87: 95.952 | F87: 97.088 | G87: 98.284 | H87: 99.834 | I87: 98.589 | J87: 98.306 | K87: 99.517 | L87: 100 | M87: 100.081 | N87: 100.791 | O87: 101.374 | P87: 100.302 | Q87: 101.125 | R87: 102.266 | S87: 103.172 | T87: 104.574 | U87: 105.6
A88: 13 | B88: Residential | C88: 84.325 | D88: 90.243 | E88: 96.706 | F88: 102.355 | G88: 103.708 | H88: 102.249 | I88: 98.671 | J88: 98.317 | K88: 99.049 | L88: 100 | M88: 105.054 | N88: 111.118 | O88: 114.114 | P88: 118.127 | Q88: 123.454 | R88: 130.417 | S88: 134.145 | T88: 138.541 | U88: 153.466
A89: 14 | B89: Change in private inventories | C89: --- | D89: --- | E89: --- | F89: --- | G89: --- | H89: --- | I89: --- | J89: --- | K89: --- | L89: --- | M89: --- | N89: --- | O89: --- | P89: --- | Q89: --- | R89: --- | S89: --- | T89: --- | U89: ---
A90: 15 | B90: Net exports of goods and services | C90: --- | D90: --- | E90: --- | F90: --- | G90: --- | H90: --- | I90: --- | J90: --- | K90: --- | L90: --- | M90: --- | N90: --- | O90: --- | P90: --- | Q90: --- | R90: --- | S90: --- | T90: --- | U90: ---
A91: 16 | B91: Exports | C91: 79.531 | D91: 82.435 | E91: 85.289 | F91: 88.006 | G91: 91.328 | H91: 95.493 | I91: 89.803 | J91: 93.35 | K91: 99.237 | L91: 100 | M91: 100.148 | N91: 100.216 | O91: 95.373 | P91: 93.458 | Q91: 95.897 | R91: 99.135 | S91: 98.66 | T91: 96.188 | U91: 107.4
A92: 17 | B92: Goods | C92: 79.497 | D92: 82.298 | E92: 84.917 | F92: 87.55 | G92: 90.978 | H92: 95.67 | I92: 88.908 | J92: 92.952 | K92: 99.793 | L92: 100 | M92: 99.32 | N92: 98.312 | O92: 91.323 | P92: 87.772 | Q92: 90.058 | R92: 93.274 | S92: 91.792 | T92: 88.162 | U92: 100.685
A93: 18 | B93: Services | C93: 79.599 | D93: 82.75 | E93: 86.171 | F93: 89.095 | G93: 92.16 | H93: 95.083 | I93: 91.745 | J93: 94.23 | K93: 98.001 | L93: 100 | M93: 101.987 | N93: 104.466 | O93: 104.431 | P93: 106.155 | Q93: 108.934 | R93: 112.212 | S93: 114.082 | T93: 114.517 | U93: 121.414
A94: 19 | B94: Imports | C94: 75.378 | D94: 78.971 | E94: 83.618 | F94: 86.854 | G94: 89.885 | H94: 98.796 | I94: 87.852 | J94: 92.656 | K94: 99.716 | L94: 100 | M94: 98.697 | N94: 97.961 | O94: 90.144 | P94: 87.058 | Q94: 88.996 | R94: 91.515 | S94: 90.078 | T94: 88.075 | U94: 94.56
A95: 20 | B95: Goods | C95: 74.483 | D95: 78.038 | E95: 82.992 | F95: 86.318 | G95: 89.232 | H95: 98.972 | I95: 86.54 | J95: 91.961 | K95: 99.869 | L95: 100 | M95: 98.059 | N95: 96.752 | O95: 87.644 | P95: 83.999 | Q95: 85.883 | R95: 88.267 | S95: 86.389 | T95: 83.963 | U95: 90.473
A96: 21 | B96: Services | C96: 80.205 | D96: 84.009 | E96: 86.934 | F96: 89.654 | G96: 93.321 | H96: 97.963 | I96: 93.763 | J96: 95.891 | K96: 98.987 | L96: 100 | M96: 101.841 | N96: 104.018 | O96: 102.981 | P96: 102.856 | Q96: 105.069 | R96: 108.3 | S96: 109.262 | T96: 109.82 | U96: 115.613
A97: 22 | B97: Government consumption expenditures and gross investment | C97: 75.044 | D97: 78.169 | E97: 82.132 | F97: 85.695 | G97: 89.53 | H97: 93.343 | I97: 92.921 | J97: 95.391 | K97: 98.289 | L97: 100 | M97: 102.363 | N97: 104.47 | O97: 104.638 | P97: 104.899 | Q97: 107.389 | R97: 111.319 | S97: 113.246 | T97: 114.861 | U97: 120.034
A98: 23 | B98: Federal | C98: 80.025 | D98: 82.777 | E98: 86.222 | F98: 88.969 | G98: 91.61 | H98: 94.42 | I98: 94.193 | J98: 96.425 | K98: 99.069 | L98: 100 | M98: 100.933 | N98: 102.643 | O98: 103.143 | P98: 103.695 | Q98: 105.702 | R98: 108.776 | S98: 110.781 | T98: 112.018 | U98: 116.025
A99: 24 | B99: National defense | C99: 79.505 | D99: 82.263 | E99: 86.011 | F99: 89.022 | G99: 91.75 | H99: 94.801 | I99: 94.126 | J99: 96.128 | K99: 98.946 | L99: 100 | M99: 100.609 | N99: 102.056 | O99: 102.334 | P99: 102.65 | Q99: 104.306 | R99: 107.149 | S99: 108.865 | T99: 110.039 | U99: 114.086
A100: 25 | B100: Nondefense | C100: 80.946 | D100: 83.689 | E100: 86.586 | F100: 88.858 | G100: 91.342 | H100: 93.713 | I100: 94.308 | J100: 96.951 | K100: 99.284 | L100: 100 | M100: 101.481 | N100: 103.621 | O100: 104.466 | P100: 105.37 | Q100: 107.902 | R100: 111.325 | S100: 113.775 | T100: 115.108 | U100: 119.063
A101: 26 | B101: State and local | C101: 72.063 | D101: 75.382 | E101: 79.631 | F101: 83.659 | G101: 88.181 | H101: 92.59 | I101: 92.045 | J101: 94.674 | K101: 97.747 | L101: 100 | M101: 103.332 | N101: 105.698 | O101: 105.656 | P101: 105.739 | Q101: 108.524 | R101: 112.984 | S101: 114.863 | T101: 116.725 | U101: 122.683
B102: Addendum:
A103: 27 | B103: Gross national product | C103: 82.619 | D103: 84.836 | E103: 87.499 | F103: 90.199 | G103: 92.64 | H103: 94.421 | I103: 95.018 | J103: 96.162 | K103: 98.165 | L103: 100 | M103: 101.747 | N103: 103.652 | O103: 104.681 | P103: 105.727 | Q103: 107.734 | R103: 110.314 | S103: 112.283 | T103: 113.636 | U103: 118.349
A105: Source: Atkins, 2022, and | B105: https://apps.bea.gov/iTable/iTable.cfm?reqid=19&step=3&isuri=1&1921=survey&1903=11#reqid=19&step=3&isuri=1&1921=survey&1903=11 | K105: (April 19, 2022)
A108: =HYPERLINK("#'"&Title!$B$17&"'!A27","Go To Title Page") -> Go To Title Page
